[Event "Titled Tuesday Blitz May 16 Early 2023"]
[White "Cezila Jr, Rubens"]
[Black "bubeliang"]
[WhiteFideId "2116723"]
[WhiteElo "2214"]
[BlackElo "2611"]
[Result "1-0"]
[Round "11"]
[TimeControl "180+2"]
[Date "2023.05.16"]
[WhiteClock "0:00:10"]
[BlackClock "0:00:06"]

1. c4 {[%clk 0:03:00]}  Nf6 {[%clk 0:02:59]} 2. Nc3 {[%clk 0:03:01]}  g6 {[%clk 0:02:58]} 3. g3 {[%clk 0:03:01]}  Bg7 {[%clk 0:02:58]} 4. Bg2 {[%clk 0:03:01]}  O-O {[%clk 0:02:58]} 5. e4 {[%clk 0:03:02]}  d6 {[%clk 0:02:58]} 6. h4 {[%clk 0:03:02]}  c5 {[%clk 0:02:57]} 7. d3 {[%clk 0:03:02]}  h5 {[%clk 0:02:55]} 8. Bg5 {[%clk 0:03:01]}  Nc6 {[%clk 0:02:56]} 9. Nge2 {[%clk 0:03:01]}  Nh7 {[%clk 0:02:51]} 10. Be3 {[%clk 0:03:00]}  Nd4 {[%clk 0:02:51]} 11. Qd2 {[%clk 0:02:56]}  e5 {[%clk 0:02:49]} 12. f4 {[%clk 0:02:54]}  Nf6 {[%clk 0:02:48]} 13. fxe5 {[%clk 0:02:44]}  dxe5 {[%clk 0:02:47]} 14. Bg5 {[%clk 0:02:43]}  Qd6 {[%clk 0:02:43]} 15. Nd5 {[%clk 0:02:16]}  Nxd5 {[%clk 0:02:41]} 16. cxd5 {[%clk 0:02:17]}  Bg4 {[%clk 0:02:37]} 17. Nxd4 {[%clk 0:02:12]}  cxd4 {[%clk 0:02:35]} 18. O-O {[%clk 0:01:58]}  Kh7 {[%clk 0:02:32]} 19. Qf2 {[%clk 0:01:42]}  f5 {[%clk 0:02:30]} 20. exf5 {[%clk 0:01:39]}  gxf5 {[%clk 0:02:15]} 21. Qc2 {[%clk 0:01:35]}  Rac8 {[%clk 0:02:13]} 22. Qb3 {[%clk 0:01:36]}  b6 {[%clk 0:02:01]} 23. Qa4 {[%clk 0:01:35]}  Rc7 {[%clk 0:01:58]} 24. Rac1 {[%clk 0:01:34]}  Rfc8 {[%clk 0:01:57]} 25. Rc6 {[%clk 0:01:34]}  Rxc6 {[%clk 0:01:52]} 26. dxc6 {[%clk 0:01:34]}  e4 {[%clk 0:01:49]} 27. dxe4 {[%clk 0:01:16]}  Qxg3 {[%clk 0:01:46]} 28. Bf4 {[%clk 0:00:51]}  Qxh4 {[%clk 0:01:42]} 29. Qxa7 {[%clk 0:00:45]}  Rxc6 {[%clk 0:01:10]} 30. exf5 {[%clk 0:00:45]}  Rc2 {[%clk 0:01:08]} 31. Be4 {[%clk 0:00:45]}  Qf6 {[%clk 0:00:47]} 32. Bxc2 {[%clk 0:00:35]}  d3 {[%clk 0:00:47]} 33. Bxd3 {[%clk 0:00:31]}  Qd4+ {[%clk 0:00:47]} 34. Rf2 {[%clk 0:00:30]}  Kg8 {[%clk 0:00:25]} 35. Qa8+ {[%clk 0:00:18]}  Bf8 {[%clk 0:00:24]} 36. Qe4 {[%clk 0:00:17]}  Qxe4 {[%clk 0:00:17]} 37. Bxe4 {[%clk 0:00:17]}  Bc5 {[%clk 0:00:18]} 38. Kg2 {[%clk 0:00:17]}  Bxf2 {[%clk 0:00:17]} 39. Kxf2 {[%clk 0:00:18]}  Kf7 {[%clk 0:00:18]} 40. Bc7 {[%clk 0:00:18]}  b5 {[%clk 0:00:17]} 41. b4 {[%clk 0:00:18]}  Kf6 {[%clk 0:00:16]} 42. Bc6 {[%clk 0:00:18]}  Bxf5 {[%clk 0:00:15]} 43. Bxb5 {[%clk 0:00:18]}  Ke6 {[%clk 0:00:15]} 44. Bc6 {[%clk 0:00:18]}  h4 {[%clk 0:00:14]} 45. b5 {[%clk 0:00:18]}  Bd3 {[%clk 0:00:13]} 46. b6 {[%clk 0:00:18]}  Ba6 {[%clk 0:00:14]} 47. b7 {[%clk 0:00:18]}  Bxb7 {[%clk 0:00:14]} 48. Bxb7 {[%clk 0:00:19]}  Kd7 {[%clk 0:00:15]} 49. Bb8 {[%clk 0:00:19]}  Kd8 {[%clk 0:00:14]} 50. a4 {[%clk 0:00:20]}  Kd7 {[%clk 0:00:15]} 51. a5 {[%clk 0:00:20]}  h3 {[%clk 0:00:16]} 52. a6 {[%clk 0:00:20]}  h2 {[%clk 0:00:17]} 53. Bxh2 {[%clk 0:00:20]}  Ke6 {[%clk 0:00:17]} 54. a7 {[%clk 0:00:20]}  Kf5 {[%clk 0:00:17]} 55. a8=B {[%clk 0:00:19]}  Kg4 {[%clk 0:00:14]} 56. Bf3+ {[%clk 0:00:18]}  Kf5 {[%clk 0:00:14]} 57. Ke3 {[%clk 0:00:18]}  Ke6 {[%clk 0:00:15]} 58. Bae4 {[%clk 0:00:17]}  Kf6 {[%clk 0:00:15]} 59. Kf4 {[%clk 0:00:17]}  Ke6 {[%clk 0:00:16]} 60. Bg4+ {[%clk 0:00:17]}  Kd6 {[%clk 0:00:16]} 61. Bg1 {[%clk 0:00:18]}  Kc7 {[%clk 0:00:14]} 62. Ke5 {[%clk 0:00:18]}  Kd8 {[%clk 0:00:07]} 63. Kd6 {[%clk 0:00:16]}  Ke8 {[%clk 0:00:03]} 64. Bd4 {[%clk 0:00:16]}  Kf8 {[%clk 0:00:04]} 65. Be6 {[%clk 0:00:15]}  Ke8 {[%clk 0:00:02]} 66. Bg6+ {[%clk 0:00:14]}  Kf8 {[%clk 0:00:02]} 67. Bgf5 {[%clk 0:00:14]}  Ke8 {[%clk 0:00:03]} 68. Ke5 {[%clk 0:00:12]}  Kf8 {[%clk 0:00:04]} 69. Kf6 {[%clk 0:00:11]}  Ke8 {[%clk 0:00:05]} 70. Bb6 {[%clk 0:00:09]}  Kf8 {[%clk 0:00:05]} 71. Bd7 {[%clk 0:00:10]}  Kg8 {[%clk 0:00:06]} 72. Kg6 {[%clk 0:00:09]}  Kf8 {[%clk 0:00:05]} 73. Bc5+ {[%clk 0:00:09]}  Kg8 {[%clk 0:00:06]} 74. Bfe6+ {[%clk 0:00:09]}  Kh8 {[%clk 0:00:06]} 75. Bd4# {[%clk 0:00:10]} 1-0


[Site "https://www.chess.com"]

[Event "Titled Tuesday Blitz May 16 Early 2023"]
[White "Koepke, Christian"]
[Black "wqws"]
[WhiteFideId "4655737"]
[WhiteElo "2204"]
[BlackElo "2605"]
[Result "0-1"]
[Round "11"]
[TimeControl "180+2"]
[Date "2023.05.16"]
[WhiteClock "0:00:03"]
[BlackClock "0:01:40"]

1. e4 {[%clk 0:03:00]}  c5 {[%clk 0:02:59]} 2. f4 {[%clk 0:03:01]}  d5 {[%clk 0:02:58]} 3. Bb5+ {[%clk 0:03:00]}  Bd7 {[%clk 0:02:56]} 4. Bxd7+ {[%clk 0:03:01]}  Qxd7 {[%clk 0:02:56]} 5. d3 {[%clk 0:03:01]}  Nc6 {[%clk 0:02:54]} 6. Nf3 {[%clk 0:03:00]}  dxe4 {[%clk 0:02:54]} 7. dxe4 {[%clk 0:03:00]}  Qxd1+ {[%clk 0:02:52]} 8. Kxd1 {[%clk 0:03:01]}  O-O-O+ {[%clk 0:02:52]} 9. Ke2 {[%clk 0:03:01]}  e5 {[%clk 0:02:45]} 10. fxe5 {[%clk 0:02:53]}  Re8 {[%clk 0:02:44]} 11. Bf4 {[%clk 0:02:47]}  Nge7 {[%clk 0:02:44]} 12. Nc3 {[%clk 0:02:03]}  h6 {[%clk 0:02:41]} 13. Rhd1 {[%clk 0:01:35]}  g5 {[%clk 0:02:40]} 14. Bg3 {[%clk 0:01:36]}  Ng6 {[%clk 0:02:36]} 15. Rd5 {[%clk 0:01:14]}  g4 {[%clk 0:02:27]} 16. Nh4 {[%clk 0:01:13]}  Nd4+ {[%clk 0:02:14]} 17. Kf1 {[%clk 0:01:06]}  Nxc2 {[%clk 0:02:12]} 18. Re1 {[%clk 0:00:31]}  Nxe1 {[%clk 0:02:11]} 19. Kxe1 {[%clk 0:00:31]}  Nxh4 {[%clk 0:01:58]} 20. Bxh4 {[%clk 0:00:31]}  Be7 {[%clk 0:01:58]} 21. Bg3 {[%clk 0:00:30]}  h5 {[%clk 0:01:53]} 22. Ke2 {[%clk 0:00:23]}  Rd8 {[%clk 0:01:53]} 23. Ke3 {[%clk 0:00:22]}  Rxd5 {[%clk 0:01:50]} 24. exd5 {[%clk 0:00:22]}  Kd7 {[%clk 0:01:49]} 25. b3 {[%clk 0:00:15]}  f5 {[%clk 0:01:48]} 26. Ne2 {[%clk 0:00:13]}  h4 {[%clk 0:01:45]} 27. e6+ {[%clk 0:00:13]}  Kc8 {[%clk 0:01:43]} 28. Be5 {[%clk 0:00:14]}  Rd8 {[%clk 0:01:43]} 29. Nf4 {[%clk 0:00:14]}  Bg5 {[%clk 0:01:43]} 30. e7 {[%clk 0:00:11]}  Bxe7 {[%clk 0:01:42]} 31. Kd3 {[%clk 0:00:09]}  Bg5 {[%clk 0:01:41]} 32. Kc4 {[%clk 0:00:10]}  Bxf4 {[%clk 0:01:40]} 33. Bxf4 {[%clk 0:00:11]}  b6 {[%clk 0:01:40]} 34. d6 {[%clk 0:00:10]}  Kd7 {[%clk 0:01:39]} 35. Kd5 {[%clk 0:00:10]}  Re8 {[%clk 0:01:40]} 36. Be5 {[%clk 0:00:10]}  h3 {[%clk 0:01:37]} 37. gxh3 {[%clk 0:00:10]}  gxh3 {[%clk 0:01:38]} 38. a4 {[%clk 0:00:09]}  Rg8 {[%clk 0:01:38]} 39. Bf4 {[%clk 0:00:08]}  Rg2 {[%clk 0:01:36]} 40. Ke5 {[%clk 0:00:08]}  Rb2 {[%clk 0:01:36]} 41. Kxf5 {[%clk 0:00:07]}  Rxb3 {[%clk 0:01:36]} 42. Kg4 {[%clk 0:00:07]}  Ra3 {[%clk 0:01:37]} 43. Bg3 {[%clk 0:00:07]}  Rxa4+ {[%clk 0:01:37]} 44. Kxh3 {[%clk 0:00:07]}  Rd4 {[%clk 0:01:37]} 45. Kg2 {[%clk 0:00:07]}  Rxd6 {[%clk 0:01:37]} 46. Bxd6 {[%clk 0:00:06]}  Kxd6 {[%clk 0:01:38]} 47. Kf3 {[%clk 0:00:06]}  Ke5 {[%clk 0:01:39]} 48. Kg4 {[%clk 0:00:06]}  c4 {[%clk 0:01:39]} 49. h4 {[%clk 0:00:06]}  c3 {[%clk 0:01:39]} 50. h5 {[%clk 0:00:06]}  c2 {[%clk 0:01:40]} 51. h6 {[%clk 0:00:03]}  c1=Q {[%clk 0:01:40]} 0-1


[Site "https://www.chess.com"]

[Event "Titled Tuesday Blitz May 16 Early 2023"]
[White "Colbow, Collin"]
[Black "Sargissyan, Sargis"]
[WhiteFideId "16201132"]
[BlackFideId "13303210"]
[WhiteElo "2351"]
[BlackElo "2109"]
[Result "1-0"]
[Round "11"]
[TimeControl "180+2"]
[Date "2023.05.16"]
[WhiteClock "0:00:32"]
[BlackClock "0:00:00"]

1. d4 {[%clk 0:03:00]}  Nf6 {[%clk 0:02:59]} 2. Nc3 {[%clk 0:03:00]}  d5 {[%clk 0:02:58]} 3. Bf4 {[%clk 0:03:01]}  a6 {[%clk 0:02:51]} 4. e3 {[%clk 0:03:00]}  c5 {[%clk 0:02:52]} 5. g4 {[%clk 0:02:55]}  Bxg4 {[%clk 0:02:46]} 6. f3 {[%clk 0:02:54]}  Bf5 {[%clk 0:02:42]} 7. dxc5 {[%clk 0:02:41]}  e6 {[%clk 0:02:39]} 8. e4 {[%clk 0:02:41]}  Bg6 {[%clk 0:02:16]} 9. exd5 {[%clk 0:02:39]}  exd5 {[%clk 0:02:16]} 10. Qe2+ {[%clk 0:02:39]}  Be7 {[%clk 0:02:15]} 11. O-O-O {[%clk 0:02:39]}  O-O {[%clk 0:02:12]} 12. Nxd5 {[%clk 0:02:06]}  Nxd5 {[%clk 0:02:08]} 13. Qc4 {[%clk 0:02:06]}  Bg5 {[%clk 0:01:34]} 14. Nh3 {[%clk 0:02:06]}  Nxf4 {[%clk 0:01:06]} 15. Rxd8 {[%clk 0:02:06]}  Nxh3+ {[%clk 0:00:56]} 16. f4 {[%clk 0:02:06]}  Bxf4+ {[%clk 0:00:49]} 17. Kb1 {[%clk 0:01:56]}  Rxd8 {[%clk 0:00:49]} 18. Bxh3 {[%clk 0:01:56]}  Be5 {[%clk 0:00:42]} 19. Qe2 {[%clk 0:01:31]}  Nc6 {[%clk 0:00:42]} 20. Bg2 {[%clk 0:01:27]}  Re8 {[%clk 0:00:38]} 21. Re1 {[%clk 0:01:11]}  Nd4 {[%clk 0:00:27]} 22. Qxe5 {[%clk 0:01:03]}  Rxe5 {[%clk 0:00:25]} 23. Rxe5 {[%clk 0:01:04]}  Nc6 {[%clk 0:00:19]} 24. Re3 {[%clk 0:00:55]}  Rd8 {[%clk 0:00:17]} 25. Kc1 {[%clk 0:00:56]}  Kf8 {[%clk 0:00:17]} 26. Rb3 {[%clk 0:00:56]}  Rd7 {[%clk 0:00:16]} 27. Rb6 {[%clk 0:00:56]}  Rc7 {[%clk 0:00:15]} 28. b4 {[%clk 0:00:54]}  Ke7 {[%clk 0:00:14]} 29. a4 {[%clk 0:00:52]}  Bf5 {[%clk 0:00:09]} 30. Kd2 {[%clk 0:00:52]}  g5 {[%clk 0:00:08]} 31. c4 {[%clk 0:00:45]}  Bc8 {[%clk 0:00:07]} 32. Kc3 {[%clk 0:00:45]}  f5 {[%clk 0:00:07]} 33. b5 {[%clk 0:00:46]}  axb5 {[%clk 0:00:07]} 34. cxb5 {[%clk 0:00:45]}  Nd8 {[%clk 0:00:07]} 35. Kb4 {[%clk 0:00:42]}  Ne6 {[%clk 0:00:07]} 36. c6 {[%clk 0:00:40]}  bxc6 {[%clk 0:00:07]} 37. Bxc6 {[%clk 0:00:40]}  f4 {[%clk 0:00:07]} 38. a5 {[%clk 0:00:40]}  g4 {[%clk 0:00:07]} 39. a6 {[%clk 0:00:38]}  f3 {[%clk 0:00:08]} 40. Rb8 {[%clk 0:00:34]}  f2 {[%clk 0:00:08]} 41. Bg2 {[%clk 0:00:35]}  Nd4 {[%clk 0:00:06]} 42. b6 {[%clk 0:00:34]}  Rc6 {[%clk 0:00:05]} 43. a7 {[%clk 0:00:32]}  Bb7 {[%clk 0:00:00]} 44. Rxb7+ {[%clk 0:00:32]} 1-0


[Site "https://www.chess.com"]

[Event "Titled Tuesday Blitz May 16 Early 2023"]
[White "Zemlyanskii, Ivan"]
[Black "Goltseva, Ekaterina"]
[WhiteFideId "24249971"]
[BlackFideId "24173770"]
[WhiteElo "2421"]
[BlackElo "2114"]
[Result "1-0"]
[Round "11"]
[TimeControl "180+2"]
[Date "2023.05.16"]
[WhiteClock "0:00:21"]
[BlackClock "0:00:00"]

1. d4 {[%clk 0:03:00]}  d5 {[%clk 0:01:54]} 2. Bf4 {[%clk 0:03:00]}  Nf6 {[%clk 0:01:54]} 3. e3 {[%clk 0:02:57]}  c5 {[%clk 0:01:55]} 4. c3 {[%clk 0:02:54]}  Nc6 {[%clk 0:01:55]} 5. Nf3 {[%clk 0:02:48]}  cxd4 {[%clk 0:01:49]} 6. exd4 {[%clk 0:02:45]}  Bg4 {[%clk 0:01:49]} 7. Nbd2 {[%clk 0:02:40]}  e6 {[%clk 0:01:49]} 8. Qb3 {[%clk 0:02:23]}  Bd6 {[%clk 0:01:43]} 9. Bxd6 {[%clk 0:02:03]}  Qxd6 {[%clk 0:01:42]} 10. Bd3 {[%clk 0:02:04]}  O-O {[%clk 0:01:41]} 11. O-O {[%clk 0:02:04]}  Rab8 {[%clk 0:01:36]} 12. a4 {[%clk 0:02:03]}  a6 {[%clk 0:01:29]} 13. a5 {[%clk 0:01:50]}  Qc7 {[%clk 0:01:27]} 14. Qa3 {[%clk 0:01:47]}  Nh5 {[%clk 0:01:22]} 15. h3 {[%clk 0:01:28]}  Nf4 {[%clk 0:01:11]} 16. Bc2 {[%clk 0:01:18]}  Bh5 {[%clk 0:00:49]} 17. g3 {[%clk 0:01:10]}  Ne2+ {[%clk 0:00:39]} 18. Kg2 {[%clk 0:01:10]}  Ncxd4 {[%clk 0:00:35]} 19. Bxh7+ {[%clk 0:00:57]}  Kxh7 {[%clk 0:00:34]} 20. cxd4 {[%clk 0:00:58]}  Nf4+ {[%clk 0:00:13]} 21. gxf4 {[%clk 0:00:56]}  Qxf4 {[%clk 0:00:14]} 22. Qe3 {[%clk 0:00:57]}  Qf6 {[%clk 0:00:12]} 23. Qg5 {[%clk 0:00:53]}  Qxg5+ {[%clk 0:00:10]} 24. Nxg5+ {[%clk 0:00:54]}  Kg6 {[%clk 0:00:11]} 25. Ngf3 {[%clk 0:00:50]}  f6 {[%clk 0:00:10]} 26. Rfe1 {[%clk 0:00:41]}  Kf7 {[%clk 0:00:08]} 27. Nb3 {[%clk 0:00:39]}  Rfe8 {[%clk 0:00:05]} 28. Nc5 {[%clk 0:00:37]}  e5 {[%clk 0:00:04]} 29. dxe5 {[%clk 0:00:38]}  Bxf3+ {[%clk 0:00:05]} 30. Kxf3 {[%clk 0:00:38]}  fxe5 {[%clk 0:00:06]} 31. Nd7 {[%clk 0:00:38]}  e4+ {[%clk 0:00:06]} 32. Kg3 {[%clk 0:00:36]}  Rbc8 {[%clk 0:00:06]} 33. Rad1 {[%clk 0:00:30]}  Ke6 {[%clk 0:00:05]} 34. Nb6 {[%clk 0:00:29]}  Rc5 {[%clk 0:00:04]} 35. f3 {[%clk 0:00:20]}  Ke5 {[%clk 0:00:03]} 36. Nd7+ {[%clk 0:00:20]}  Kd6 {[%clk 0:00:02]} 37. Nxc5 {[%clk 0:00:20]}  Kxc5 {[%clk 0:00:03]} 38. fxe4 {[%clk 0:00:21]}  dxe4 {[%clk 0:00:04]} 39. Kf4 {[%clk 0:00:21]}  e3 {[%clk 0:00:00]} 40. Rxe3 {[%clk 0:00:21]} 1-0


[Site "https://www.chess.com"]

[Event "Titled Tuesday Blitz May 16 Early 2023"]
[White "Yelisieiev, Yevhenii"]
[Black "Preotu, Razvan"]
[WhiteFideId "14139642"]
[BlackFideId "2613280"]
[WhiteElo "2403"]
[BlackElo "2407"]
[Result "0-1"]
[Round "11"]
[TimeControl "180+2"]
[Date "2023.05.16"]
[WhiteClock "0:00:02"]
[BlackClock "0:00:03"]

1. d4 {[%clk 0:03:00]}  Nf6 {[%clk 0:02:52]} 2. Nf3 {[%clk 0:03:01]}  g6 {[%clk 0:02:50]} 3. g3 {[%clk 0:03:01]}  Bg7 {[%clk 0:02:50]} 4. Bg2 {[%clk 0:03:02]}  O-O {[%clk 0:02:51]} 5. O-O {[%clk 0:03:03]}  d5 {[%clk 0:02:51]} 6. c3 {[%clk 0:03:00]}  a5 {[%clk 0:02:49]} 7. a4 {[%clk 0:02:59]}  c5 {[%clk 0:02:47]} 8. dxc5 {[%clk 0:02:59]}  Na6 {[%clk 0:02:47]} 9. Na3 {[%clk 0:02:31]}  Nxc5 {[%clk 0:02:40]} 10. Nb5 {[%clk 0:02:21]}  Bd7 {[%clk 0:01:51]} 11. Bf4 {[%clk 0:02:12]}  Rc8 {[%clk 0:01:27]} 12. Ne5 {[%clk 0:01:54]}  Bxb5 {[%clk 0:01:26]} 13. axb5 {[%clk 0:01:54]}  Qb6 {[%clk 0:01:24]} 14. b4 {[%clk 0:01:07]}  axb4 {[%clk 0:01:22]} 15. cxb4 {[%clk 0:01:08]}  Nce4 {[%clk 0:01:20]} 16. Qd3 {[%clk 0:00:45]}  Rc3 {[%clk 0:01:10]} 17. Be3 {[%clk 0:00:45]}  Qe6 {[%clk 0:01:03]} 18. Qd4 {[%clk 0:00:27]}  Rfc8 {[%clk 0:00:29]} 19. Nd3 {[%clk 0:00:20]}  Ng4 {[%clk 0:00:26]} 20. Qb6 {[%clk 0:00:18]}  Nxe3 {[%clk 0:00:16]} 21. Qxe6 {[%clk 0:00:18]}  fxe6 {[%clk 0:00:16]} 22. fxe3 {[%clk 0:00:19]}  Bh6 {[%clk 0:00:06]} 23. Nf4 {[%clk 0:00:17]}  Rxe3 {[%clk 0:00:04]} 24. Ra7 {[%clk 0:00:16]}  Bxf4 {[%clk 0:00:04]} 25. Rxf4 {[%clk 0:00:15]}  Rxe2 {[%clk 0:00:04]} 26. Bxe4 {[%clk 0:00:15]}  dxe4 {[%clk 0:00:03]} 27. Rxb7 {[%clk 0:00:14]}  Rc1+ {[%clk 0:00:02]} 28. Rf1 {[%clk 0:00:14]}  Rcc2 {[%clk 0:00:03]} 29. Rd1 {[%clk 0:00:11]}  Rg2+ {[%clk 0:00:02]} 30. Kf1 {[%clk 0:00:11]}  Rxh2 {[%clk 0:00:02]} 31. Kg1 {[%clk 0:00:10]}  Rcg2+ {[%clk 0:00:02]} 32. Kf1 {[%clk 0:00:10]}  Rb2 {[%clk 0:00:03]} 33. Kg1 {[%clk 0:00:10]}  e3 {[%clk 0:00:01]} 34. Rxe7 {[%clk 0:00:06]}  Rbg2+ {[%clk 0:00:01]} 35. Kf1 {[%clk 0:00:06]}  e2+ {[%clk 0:00:02]} 36. Ke1 {[%clk 0:00:05]}  Rg1+ {[%clk 0:00:02]} 37. Kd2 {[%clk 0:00:02]}  exd1=Q+ {[%clk 0:00:03]} 38. Kc3 {[%clk 0:00:03]}  Rc2+ {[%clk 0:00:02]} 39. Kb3 {[%clk 0:00:01]}  Qd3+ {[%clk 0:00:03]} 40. Ka4 {[%clk 0:00:02]}  Ra1# {[%clk 0:00:03]} 0-1


[Site "https://www.chess.com"]

[Event "Titled Tuesday Blitz May 16 Early 2023"]
[White "Przybylski, Wojciech"]
[Black "Gheorghiu, Calin"]
[WhiteFideId "1117599"]
[BlackFideId "1200305"]
[WhiteElo "2222"]
[BlackElo "2223"]
[Result "0-1"]
[Round "11"]
[TimeControl "180+2"]
[Date "2023.05.16"]
[WhiteClock "0:00:00"]
[BlackClock "0:00:18"]

1. e4 {[%clk 0:02:59]}  c5 {[%clk 0:02:59]} 2. Nf3 {[%clk 0:02:59]}  d6 {[%clk 0:02:59]} 3. Bb5+ {[%clk 0:02:59]}  Nd7 {[%clk 0:02:59]} 4. c4 {[%clk 0:03:00]}  Nf6 {[%clk 0:02:52]} 5. Nc3 {[%clk 0:03:00]}  a6 {[%clk 0:02:52]} 6. Ba4 {[%clk 0:03:00]}  g6 {[%clk 0:02:42]} 7. O-O {[%clk 0:03:01]}  Bg7 {[%clk 0:02:43]} 8. d3 {[%clk 0:03:01]}  O-O {[%clk 0:02:42]} 9. Re1 {[%clk 0:03:02]}  Rb8 {[%clk 0:02:39]} 10. Bc2 {[%clk 0:03:02]}  b5 {[%clk 0:02:38]} 11. Bg5 {[%clk 0:03:02]}  h6 {[%clk 0:02:21]} 12. Be3 {[%clk 0:03:02]}  Ng4 {[%clk 0:02:01]} 13. Bc1 {[%clk 0:03:02]}  bxc4 {[%clk 0:01:41]} 14. dxc4 {[%clk 0:03:02]}  Bxc3 {[%clk 0:01:41]} 15. bxc3 {[%clk 0:03:02]}  Kg7 {[%clk 0:01:41]} 16. Qd2 {[%clk 0:02:59]}  Rh8 {[%clk 0:01:39]} 17. Bb3 {[%clk 0:02:57]}  a5 {[%clk 0:01:34]} 18. h3 {[%clk 0:02:57]}  Nge5 {[%clk 0:01:32]} 19. Nxe5 {[%clk 0:02:57]}  Nxe5 {[%clk 0:01:32]} 20. f4 {[%clk 0:02:57]}  Nd7 {[%clk 0:01:18]} 21. Qc2 {[%clk 0:02:58]}  Nb6 {[%clk 0:01:17]} 22. a4 {[%clk 0:02:56]}  Be6 {[%clk 0:01:11]} 23. Qe2 {[%clk 0:02:54]}  Qc8 {[%clk 0:01:10]} 24. g4 {[%clk 0:02:52]}  Qa6 {[%clk 0:01:09]} 25. e5 {[%clk 0:02:44]}  Bxc4 {[%clk 0:01:08]} 26. Bxc4 {[%clk 0:02:42]}  Qxc4 {[%clk 0:01:08]} 27. exd6 {[%clk 0:02:40]}  exd6 {[%clk 0:01:06]} 28. Bd2 {[%clk 0:02:37]}  Qxe2 {[%clk 0:01:02]} 29. Rxe2 {[%clk 0:02:37]}  Nc4 {[%clk 0:01:02]} 30. Be1 {[%clk 0:02:37]}  Rhe8 {[%clk 0:00:59]} 31. Kf1 {[%clk 0:02:37]}  Rxe2 {[%clk 0:00:58]} 32. Kxe2 {[%clk 0:02:37]}  Rb2+ {[%clk 0:00:58]} 33. Kf3 {[%clk 0:02:37]}  Kf6 {[%clk 0:00:47]} 34. Bh4+ {[%clk 0:02:35]}  g5 {[%clk 0:00:45]} 35. fxg5+ {[%clk 0:02:30]}  hxg5 {[%clk 0:00:45]} 36. Be1 {[%clk 0:02:30]}  Ne5+ {[%clk 0:00:43]} 37. Ke4 {[%clk 0:02:28]}  Ke6 {[%clk 0:00:43]} 38. Ke3 {[%clk 0:02:25]}  d5 {[%clk 0:00:42]} 39. Rd1 {[%clk 0:02:20]}  Rh2 {[%clk 0:00:41]} 40. Bg3 {[%clk 0:02:18]}  Rxh3 {[%clk 0:00:40]} 41. Kf2 {[%clk 0:02:17]}  Nxg4+ {[%clk 0:00:37]} 42. Kf3 {[%clk 0:02:17]}  Ne3 {[%clk 0:00:28]} 43. Re1 {[%clk 0:02:08]}  d4 {[%clk 0:00:28]} 44. cxd4 {[%clk 0:02:08]}  cxd4 {[%clk 0:00:28]} 45. Kf2 {[%clk 0:01:52]}  f5 {[%clk 0:00:27]} 46. Bc7 {[%clk 0:01:49]}  f4 {[%clk 0:00:26]} 47. Bxa5 {[%clk 0:01:46]}  g4 {[%clk 0:00:25]} 48. Bb6 {[%clk 0:01:43]}  Kd5 {[%clk 0:00:22]} 49. a5 {[%clk 0:01:39]}  Rh2+ {[%clk 0:00:23]} 50. Kg1 {[%clk 0:01:39]}  Ra2 {[%clk 0:00:22]} 51. Rb1 {[%clk 0:01:35]}  f3 {[%clk 0:00:21]} 52. a6 {[%clk 0:01:29]}  f2+ {[%clk 0:00:18]} 53. Kh1 {[%clk 0:01:28]}  f1=Q+ {[%clk 0:00:17]} 54. Rxf1 {[%clk 0:01:27]}  Nxf1 {[%clk 0:00:17]} 55. Bxd4 {[%clk 0:01:26]}  Kxd4 {[%clk 0:00:16]} 56. a7 {[%clk 0:01:27]}  Ng3+ {[%clk 0:00:16]} 57. Kg1 {[%clk 0:01:26]}  Rxa7 {[%clk 0:00:17]} 58. Kg2 {[%clk 0:00:00]}  Nf5 {[%clk 0:00:18]} 0-1


[Site "https://www.chess.com"]

[Event "Titled Tuesday Blitz May 16 Early 2023"]
[White "Nikologorskiy, Konstantin"]
[Black "Ljukin, Sergei"]
[WhiteFideId "24111708"]
[BlackFideId "14102200"]
[WhiteElo "2273"]
[BlackElo "2312"]
[Result "1-0"]
[Round "11"]
[TimeControl "180+2"]
[Date "2023.05.16"]
[WhiteClock "0:01:21"]
[BlackClock "0:00:00"]

1. d4 {[%clk 0:02:58]}  d5 {[%clk 0:02:59]} 2. c4 {[%clk 0:02:59]}  c6 {[%clk 0:02:59]} 3. Nf3 {[%clk 0:03:00]}  Nf6 {[%clk 0:02:59]} 4. Nc3 {[%clk 0:03:00]}  dxc4 {[%clk 0:02:59]} 5. a4 {[%clk 0:03:00]}  Bf5 {[%clk 0:02:59]} 6. e3 {[%clk 0:02:53]}  e6 {[%clk 0:02:59]} 7. Bxc4 {[%clk 0:02:54]}  Bb4 {[%clk 0:02:59]} 8. O-O {[%clk 0:02:55]}  Nbd7 {[%clk 0:02:59]} 9. Qe2 {[%clk 0:02:55]}  O-O {[%clk 0:02:59]} 10. e4 {[%clk 0:02:49]}  Bg4 {[%clk 0:02:59]} 11. Bg5 {[%clk 0:02:48]}  Qa5 {[%clk 0:02:59]} 12. e5 {[%clk 0:02:40]}  Nd5 {[%clk 0:02:59]} 13. Ne4 {[%clk 0:02:38]}  c5 {[%clk 0:02:56]} 14. h3 {[%clk 0:02:24]}  Bxf3 {[%clk 0:02:54]} 15. Qxf3 {[%clk 0:02:25]}  cxd4 {[%clk 0:02:52]} 16. Qg3 {[%clk 0:02:24]}  Kh8 {[%clk 0:02:41]} 17. Rad1 {[%clk 0:02:12]}  N5b6 {[%clk 0:01:08]} 18. Bb5 {[%clk 0:02:06]}  a6 {[%clk 0:01:04]} 19. Bxd7 {[%clk 0:02:05]}  Nxd7 {[%clk 0:01:04]} 20. Rxd4 {[%clk 0:02:06]}  Nxe5 {[%clk 0:01:04]} 21. Rxb4 {[%clk 0:02:04]}  Qxb4 {[%clk 0:01:04]} 22. Qxe5 {[%clk 0:02:05]}  Qxa4 {[%clk 0:00:20]} 23. Bf6 {[%clk 0:01:54]}  Rg8 {[%clk 0:00:16]} 24. Be7 {[%clk 0:01:21]}  Rae8 {[%clk 0:00:00]} 25. Ba3 {[%clk 0:01:21]} 1-0


[Site "https://www.chess.com"]